[Event "*** Titled Tuesday Blitz"]
[Site "Chess.com"]
[Date "2019.07.02"]
[Round "9"]
[White "731291"]
[Black "ChessWeebs"]
[Result "1-0"]
[WhiteElo "2688"]
[BlackElo "2789"]
[TimeControl "180+2"]
[EndTime "14:59:28 PDT"]
[Termination "731291 won by resignation"]

1. d4 {[%clk 0:03:01.9]} 1... d5 {[%clk 0:03:00.5]} 2. Nf3 {[%clk 0:03:02]} 2...
Nf6 {[%clk 0:03:01.1]} 3. g3 {[%clk 0:02:57.2]} 3... g6 {[%clk 0:03:01.3]} 4.
Bg2 {[%clk 0:02:57.6]} 4... Bg7 {[%clk 0:03:03.2]} 5. O-O {[%clk 0:02:58]} 5...
O-O {[%clk 0:03:04.9]} 6. c4 {[%clk 0:02:58.3]} 6... c6 {[%clk 0:03:06.1]} 7.
Nc3 {[%clk 0:02:57.7]} 7... dxc4 {[%clk 0:03:06.7]} 8. Ne5 {[%clk 0:02:55.2]}
8... Be6 {[%clk 0:03:07.9]} 9. e4 {[%clk 0:02:49.2]} 9... Nbd7 {[%clk
0:03:07.2]} 10. f4 {[%clk 0:02:47.8]} 10... Qb6 {[%clk 0:03:03.8]} 11. Kh1
{[%clk 0:02:33.9]} 11... Rfd8 {[%clk 0:03:03.2]} 12. Na4 {[%clk 0:01:55.2]}
12... Qa6 {[%clk 0:02:56.1]} 13. Qc2 {[%clk 0:01:53.3]} 13... b5 {[%clk
0:02:55.1]} 14. Nc3 {[%clk 0:01:51.3]} 14... Nxe5 {[%clk 0:02:41.3]} 15. fxe5
{[%clk 0:01:47.4]} 15... Ng4 {[%clk 0:02:42.3]} 16. h3 {[%clk 0:01:37.4]} 16...
Rxd4 {[%clk 0:02:31.3]} 17. hxg4 {[%clk 0:01:36.9]} 17... Bxe5 {[%clk
0:02:32.9]} 18. Bf4 {[%clk 0:01:25.8]} 18... f6 {[%clk 0:02:33.8]} 19. Bxe5
{[%clk 0:01:25.1]} 19... fxe5 {[%clk 0:02:35.1]} 20. g5 {[%clk 0:01:26]} 20...
Rad8 {[%clk 0:02:35]} 21. Rf2 {[%clk 0:01:27.1]} 21... b4 {[%clk 0:02:31.1]} 22.
Ne2 {[%clk 0:01:26.2]} 22... Rd2 {[%clk 0:02:31.7]} 23. Qc1 {[%clk 0:01:25.4]}
23... Qb6 {[%clk 0:02:29.3]} 24. Qg1 {[%clk 0:01:21.2]} 24... c3 {[%clk
0:02:19.4]} 25. bxc3 {[%clk 0:01:20.6]} 25... bxc3 {[%clk 0:02:21.3]} 26. Rb1
{[%clk 0:01:13.6]} 26... Qxb1 {[%clk 0:02:21.9]} 27. Qxb1 {[%clk 0:01:13.6]}
27... Rd1+ {[%clk 0:02:23.8]} 28. Qxd1 {[%clk 0:01:07.5]} 28... Rxd1+ {[%clk
0:02:25.7]} 29. Ng1 {[%clk 0:01:05]} 29... Rd2 {[%clk 0:02:20.3]} 30. Rxd2
{[%clk 0:01:03.1]} 30... cxd2 {[%clk 0:02:21.4]} 31. Bf3 {[%clk 0:01:05]} 31...
c5 {[%clk 0:02:17]} 32. Bd1 {[%clk 0:01:03.2]} 32... c4 {[%clk 0:02:18.2]} 33.
Kg2 {[%clk 0:01:01.4]} 33... Kf8 {[%clk 0:02:09.4]} 34. Kf2 {[%clk 0:01:02.1]}
34... Ke8 {[%clk 0:01:56.8]} 35. Ke3 {[%clk 0:01:02.9]} 35... c3 {[%clk
0:01:55.4]} 36. Kd3 {[%clk 0:01:03.1]} 36... Bxa2 {[%clk 0:01:52.6]} 37. Kxc3
{[%clk 0:01:04.3]} 37... Kd7 {[%clk 0:01:54]} 38. Nf3 {[%clk 0:01:04.6]} 38...
Kd6 {[%clk 0:01:55.4]} 39. Nxd2 {[%clk 0:01:03.9]} 39... Be6 {[%clk 0:01:52.9]}
40. Nc4+ {[%clk 0:01:05]} 40... Kc5 {[%clk 0:01:51.6]} 41. Nxe5 {[%clk
0:01:05.9]} 41... Bh3 {[%clk 0:01:53.2]} 42. Nd3+ {[%clk 0:01:05.4]} 42... Kd6
{[%clk 0:01:54.4]} 43. Kd4 {[%clk 0:01:06.6]} 43... a5 {[%clk 0:01:55.7]} 44.
e5+ {[%clk 0:01:07.9]} 44... Kc6 {[%clk 0:01:56.8]} 45. Ba4+ {[%clk 0:01:08.6]}
45... Kb6 {[%clk 0:01:58.2]} 46. Nf4 {[%clk 0:01:07.5]} 1-0

[Event "*** Titled Tuesday Blitz"]
[Site "Chess.com"]
[Date "2019.07.02"]
[Round "9"]
[White "vova-79"]
[Black "Pechen_Yeltsina"]
[Result "0-1"]
[WhiteElo "2403"]
[BlackElo "2653"]
[TimeControl "180+2"]
[EndTime "14:59:33 PDT"]
[Termination "Pechen_Yeltsina won by resignation"]

1. d4 {[%clk 0:03:01.9]} 1... g6 {[%clk 0:02:59.9]} 2. c4 {[%clk 0:03:02.2]}
2... Bg7 {[%clk 0:03:01.5]} 3. Nf3 {[%clk 0:03:03.3]} 3... d6 {[%clk 0:03:02.9]}
4. Nc3 {[%clk 0:03:02.8]} 4... Nd7 {[%clk 0:03:04.2]} 5. g3 {[%clk 0:03:02.8]}
5... e5 {[%clk 0:03:05.5]} 6. Bg2 {[%clk 0:03:03]} 6... Ne7 {[%clk 0:03:06.7]}
7. O-O {[%clk 0:03:03.2]} 7... O-O {[%clk 0:03:08]} 8. e4 {[%clk 0:03:04.3]}
8... exd4 {[%clk 0:03:08.7]} 9. Nxd4 {[%clk 0:03:04.3]} 9... Nc6 {[%clk
0:03:10.1]} 10. Be3 {[%clk 0:03:03.7]} 10... Nde5 {[%clk 0:03:10.2]} 11. Nxc6
{[%clk 0:02:58.1]} 11... bxc6 {[%clk 0:03:12.1]} 12. Qe2 {[%clk 0:02:55.4]}
12... Bg4 {[%clk 0:03:12.2]} 13. f3 {[%clk 0:02:55.6]} 13... Be6 {[%clk
0:03:13.6]} 14. Rfd1 {[%clk 0:02:39.6]} 14... Bxc4 {[%clk 0:03:11.8]} 15. Qf2
{[%clk 0:02:39.8]} 15... Qb8 {[%clk 0:03:03.2]} 16. b3 {[%clk 0:02:06.3]} 16...
Be6 {[%clk 0:02:36.2]} 17. Qc2 {[%clk 0:02:03.5]} 17... f5 {[%clk 0:02:32]} 18.
Rac1 {[%clk 0:01:56.7]} 18... fxe4 {[%clk 0:02:28.4]} 19. fxe4 {[%clk
0:01:56.9]} 19... Bg4 {[%clk 0:02:25.1]} 20. Rf1 {[%clk 0:01:55.9]} 20... Qb4
{[%clk 0:02:16.5]} 21. h3 {[%clk 0:01:48.2]} 21... Be6 {[%clk 0:02:09.7]} 22.
Kh2 {[%clk 0:01:47.9]} 22... a5 {[%clk 0:02:09.3]} 23. Ne2 {[%clk 0:01:44]}
23... a4 {[%clk 0:01:55.1]} 24. Nd4 {[%clk 0:01:20.2]} 24... axb3 {[%clk
0:01:54.4]} 25. axb3 {[%clk 0:01:19.2]} 25... Bd7 {[%clk 0:01:52.2]} 26. Rxf8+
{[%clk 0:01:01.8]} 26... Rxf8 {[%clk 0:01:50.3]} 27. Rf1 {[%clk 0:01:01.5]}
27... Rxf1 {[%clk 0:01:47.6]} 28. Bxf1 {[%clk 0:01:03.4]} 28... c5 {[%clk
0:01:41.9]} 29. Ne2 {[%clk 0:01:01.9]} 29... Bb5 {[%clk 0:01:25.5]} 30. Bd2
{[%clk 0:00:52.5]} 30... Qxd2 {[%clk 0:01:23]} 0-1

[Event "*** Titled Tuesday Blitz"]
[Site "Chess.com"]
[Date "2019.07.02"]
[Round "9"]
[White "enriquetejedor"]
[Black "wonderfultime"]
[Result "0-1"]
[WhiteElo "2608"]
[BlackElo "2901"]
[TimeControl "180+2"]
[EndTime "14:59:44 PDT"]
[Termination "wonderfultime won by checkmate"]

1. e4 {[%clk 0:02:54.9]} 1... c5 {[%clk 0:03:00.9]} 2. Nf3 {[%clk 0:02:53.3]}
2... Nf6 {[%clk 0:03:01.1]} 3. Nc3 {[%clk 0:02:43.5]} 3... d5 {[%clk 0:02:59.9]}
4. exd5 {[%clk 0:02:20.2]} 4... Nxd5 {[%clk 0:03:01.5]} 5. Bb5+ {[%clk
0:01:56.4]} 5... Bd7 {[%clk 0:03:00.8]} 6. Bc4 {[%clk 0:01:47.8]} 6... Nb6
{[%clk 0:03:01.1]} 7. Bd3 {[%clk 0:01:19.7]} 7... Nc6 {[%clk 0:02:59.4]} 8. b3
{[%clk 0:01:20.5]} 8... g6 {[%clk 0:03:00.3]} 9. Bb2 {[%clk 0:01:18.4]} 9... Bg7
{[%clk 0:03:01.4]} 10. O-O {[%clk 0:01:17.9]} 10... O-O {[%clk 0:03:02.2]} 11.
h3 {[%clk 0:01:19.2]} 11... Rc8 {[%clk 0:03:01.1]} 12. Rb1 {[%clk 0:01:03.3]}
12... Nd4 {[%clk 0:02:57.6]} 13. Nxd4 {[%clk 0:01:01.2]} 13... cxd4 {[%clk
0:02:59.5]} 14. Ne2 {[%clk 0:01:02.3]} 14... Bc6 {[%clk 0:02:59.1]} 15. c4
{[%clk 0:00:58.7]} 15... e5 {[%clk 0:02:57.6]} 16. Ng3 {[%clk 0:00:40.5]} 16...
f5 {[%clk 0:02:58.5]} 17. Bc2 {[%clk 0:00:41.8]} 17... d3 {[%clk 0:02:58.1]} 18.
Re1 {[%clk 0:00:22.6]} 18... e4 {[%clk 0:02:32.6]} 19. Bxg7 {[%clk 0:00:21.7]}
19... Kxg7 {[%clk 0:02:34.5]} 20. Bxd3 {[%clk 0:00:12.1]} 20... Qxd3 {[%clk
0:02:33.9]} 21. Re3 {[%clk 0:00:12.1]} 21... Qd8 {[%clk 0:02:30.5]} 22. Re1
{[%clk 0:00:02.8]} 22... Nd7 {[%clk 0:02:29.9]} 23. d4 {[%clk 0:00:03.8]} 23...
exd3 {[%clk 0:02:28.5]} 24. Qxd3 {[%clk 0:00:04.8]} 24... Nf6 {[%clk 0:02:26]}
25. Qe3 {[%clk 0:00:04.9]} 25... Qc7 {[%clk 0:02:25.9]} 26. Qxa7 {[%clk
0:00:04.9]} 26... f4 {[%clk 0:02:24.4]} 27. Qc5 {[%clk 0:00:04.2]} 27... Rf7
{[%clk 0:02:20.1]} 28. Nf1 {[%clk 0:00:03.3]} 28... f3 {[%clk 0:02:17.2]} 29.
Qe5 {[%clk 0:00:04.6]} 29... fxg2 {[%clk 0:02:17.3]} 30. Ng3 {[%clk 0:00:05.5]}
30... Qxe5 {[%clk 0:02:16.3]} 31. Rxe5 {[%clk 0:00:07.4]} 31... Nd7 {[%clk
0:02:16.5]} 32. Re3 {[%clk 0:00:06.6]} 32... Rcf8 {[%clk 0:02:17.4]} 33. Rb2
{[%clk 0:00:06.2]} 33... b6 {[%clk 0:02:15.4]} 34. b4 {[%clk 0:00:06.3]} 34...
Rf4 {[%clk 0:02:15.1]} 35. Rc2 {[%clk 0:00:06.7]} 35... Rd4 {[%clk 0:02:16.2]}
36. Re1 {[%clk 0:00:03.2]} 36... Ne5 {[%clk 0:02:16.4]} 37. h4 {[%clk
0:00:02.6]} 37... Nf3+ {[%clk 0:02:17.5]} 38. Kxg2 {[%clk 0:00:02.8]} 38...
Nxe1+ {[%clk 0:02:19.4]} 39. Kf1 {[%clk 0:00:03.9]} 39... Nxc2 {[%clk
0:02:21.3]} 40. Ne2 {[%clk 0:00:05.4]} 40... Rd1# {[%clk 0:02:22.3]} 0-1

[Event "*** Titled Tuesday Blitz"]
[Site "Chess.com"]
[Date "2019.07.02"]
[Round "9"]
[White "TST2014"]
[Black "KaterynaLagno"]
[Result "1-0"]
[WhiteElo "2593"]
[BlackElo "2653"]
[TimeControl "180+2"]
[EndTime "14:59:49 PDT"]
[Termination "TST2014 won by resignation"]

1. d4 {[%clk 0:03:01.9]} 1... Nf6 {[%clk 0:03:00.5]} 2. c4 {[%clk 0:03:02.5]}
2... g6 {[%clk 0:03:01.9]} 3. Nc3 {[%clk 0:03:02.4]} 3... Bg7 {[%clk 0:03:03.5]}
4. e4 {[%clk 0:03:03.5]} 4... d6 {[%clk 0:03:04.8]} 5. Be2 {[%clk 0:03:04.8]}
5... O-O {[%clk 0:03:05.9]} 6. Nf3 {[%clk 0:03:06.1]} 6... e5 {[%clk 0:03:06.4]}
7. O-O {[%clk 0:03:07.5]} 7... Nc6 {[%clk 0:03:07.7]} 8. d5 {[%clk 0:03:08.7]}
8... Ne7 {[%clk 0:03:09.3]} 9. b4 {[%clk 0:03:09.6]} 9... a5 {[%clk 0:03:06.4]}
10. bxa5 {[%clk 0:03:09.3]} 10... Rxa5 {[%clk 0:03:05.7]} 11. Nd2 {[%clk
0:03:09]} 11... c5 {[%clk 0:02:56.1]} 12. a4 {[%clk 0:03:01.8]} 12... b6 {[%clk
0:02:54.7]} 13. Ra3 {[%clk 0:03:01.8]} 13... Bh6 {[%clk 0:02:47.4]} 14. Nb3
{[%clk 0:02:37.3]} 14... Bxc1 {[%clk 0:02:47.5]} 15. Qxc1 {[%clk 0:02:38.9]}
15... Ra6 {[%clk 0:02:48.7]} 16. f4 {[%clk 0:02:17.7]} 16... Nd7 {[%clk
0:02:33.3]} 17. Nb5 {[%clk 0:02:12.1]} 17... exf4 {[%clk 0:01:52.8]} 18. Nxd6
{[%clk 0:02:03.4]} 18... g5 {[%clk 0:01:48.9]} 19. h4 {[%clk 0:01:51.4]} 19...
h6 {[%clk 0:01:49.7]} 20. Bg4 {[%clk 0:01:51.5]} 20... Ne5 {[%clk 0:01:46.8]}
21. Bxc8 {[%clk 0:01:46.4]} 21... Nxc8 {[%clk 0:01:43.4]} 22. Nf5 {[%clk
0:01:42.9]} 22... Nd6 {[%clk 0:01:41.1]} 23. Nxh6+ {[%clk 0:01:29.1]} 23... Kg7
{[%clk 0:01:28.4]} 24. hxg5 {[%clk 0:01:18.8]} 24... Qxg5 {[%clk 0:01:26.6]} 25.
Qxf4 {[%clk 0:01:00]} 25... Qxf4 {[%clk 0:01:20.1]} 26. Rxf4 {[%clk 0:01:00.1]}
26... Nexc4 {[%clk 0:01:21.3]} 27. Nxc5 {[%clk 0:00:54.1]} 27... bxc5 {[%clk
0:01:20.3]} 28. Rg3+ {[%clk 0:00:53.8]} 28... Kh7 {[%clk 0:01:12]} 29. Rh4
{[%clk 0:00:53.6]} 29... Nxe4 {[%clk 0:00:49.8]} 30. Nf5+ {[%clk 0:00:51.5]} 1-0

[Event "*** Titled Tuesday Blitz"]
[Site "Chess.com"]
[Date "2019.07.02"]
[Round "9"]
[White "PotapovaM"]
[Black "chess4life23"]
[Result "1-0"]
[WhiteElo "2499"]
[BlackElo "2327"]
[TimeControl "180+2"]
[EndTime "14:59:52 PDT"]
[Termination "PotapovaM won by checkmate"]

1. e4 {[%clk 0:03:01.9]} 1... c6 {[%clk 0:03:01]} 2. Nc3 {[%clk 0:03:00.6]} 2...
d5 {[%clk 0:03:02.9]} 3. Nf3 {[%clk 0:03:01.1]} 3... e6 {[%clk 0:03:03.9]} 4. d4
{[%clk 0:03:00.2]} 4... dxe4 {[%clk 0:03:05]} 5. Nxe4 {[%clk 0:03:01]} 5... Nd7
{[%clk 0:03:06.9]} 6. Bd3 {[%clk 0:03:01.6]} 6... Ngf6 {[%clk 0:03:07.8]} 7. O-O
{[%clk 0:03:02.7]} 7... Nxe4 {[%clk 0:03:07.7]} 8. Bxe4 {[%clk 0:03:04.6]} 8...
Nf6 {[%clk 0:03:09]} 9. Bd3 {[%clk 0:03:06]} 9... c5 {[%clk 0:03:10.4]} 10. Qe2
{[%clk 0:03:04]} 10... cxd4 {[%clk 0:03:10.6]} 11. Rd1 {[%clk 0:03:02]} 11...
Bc5 {[%clk 0:03:09.9]} 12. b4 {[%clk 0:02:51.8]} 12... Bxb4 {[%clk 0:03:04]} 13.
Bb5+ {[%clk 0:02:52.2]} 13... Kf8 {[%clk 0:02:47.2]} 14. Rxd4 {[%clk 0:02:51.3]}
14... Qe7 {[%clk 0:02:48.2]} 15. Bf4 {[%clk 0:02:11.1]} 15... Nd5 {[%clk
0:02:41.4]} 16. Rad1 {[%clk 0:02:07.7]} 16... f6 {[%clk 0:01:33.5]} 17. Rxb4
{[%clk 0:02:03.2]} 17... Qxb4 {[%clk 0:01:27.1]} 18. Rxd5 {[%clk 0:01:46.8]}
18... Kf7 {[%clk 0:00:47.9]} 19. Rd4 {[%clk 0:01:22.1]} 19... Qb1+ {[%clk
0:00:48.3]} 20. Rd1 {[%clk 0:01:22.7]} 20... Qb4 {[%clk 0:00:48.4]} 21. Bd6
{[%clk 0:01:23.3]} 21... Qa5 {[%clk 0:00:47.2]} 22. Ne5+ {[%clk 0:01:04.3]}
22... fxe5 {[%clk 0:00:21.1]} 23. Qf3+ {[%clk 0:01:04.7]} 23... Kg6 {[%clk
0:00:22.2]} 24. Bd3+ {[%clk 0:01:04.9]} 24... Kh6 {[%clk 0:00:23.3]} 25. Qh3+
{[%clk 0:01:00]} 25... Kg5 {[%clk 0:00:21.8]} 26. Be7+ {[%clk 0:01:00.6]} 26...
Kf4 {[%clk 0:00:22.7]} 27. Qg3# {[%clk 0:01:00.8]} 1-0

[Event "*** Titled Tuesday Blitz"]
[Site "Chess.com"]
[Date "2019.07.02"]
[Round "9"]
[White "Chesstrainer1"]
[Black "LisikValera"]
[Result "0-1"]
[WhiteElo "2446"]
[BlackElo "2456"]
[TimeControl "180+2"]
[EndTime "14:59:59 PDT"]
[Termination "LisikValera won by resignation"]

1. d4 {[%clk 0:03:01.9]} 1... d5 {[%clk 0:03:00.7]} 2. c4 {[%clk 0:03:02.8]}
2... c6 {[%clk 0:03:02]} 3. cxd5 {[%clk 0:03:04]} 3... cxd5 {[%clk 0:03:02.3]}
4. Nc3 {[%clk 0:03:05.9]} 4... Nf6 {[%clk 0:03:03.6]} 5. f3 {[%clk 0:03:06.7]}
5... Nc6 {[%clk 0:03:04.4]} 6. e4 {[%clk 0:03:07.3]} 6... e6 {[%clk 0:03:05.8]}
7. e5 {[%clk 0:03:07.3]} 7... Ng8 {[%clk 0:03:06.8]} 8. f4 {[%clk 0:03:07.7]}
8... Nge7 {[%clk 0:03:07.8]} 9. Nf3 {[%clk 0:03:08.5]} 9... Nf5 {[%clk
0:03:08.7]} 10. a3 {[%clk 0:02:45.3]} 10... h5 {[%clk 0:03:08.7]} 11. b4 {[%clk
0:02:35.9]} 11... Bd7 {[%clk 0:03:09.4]} 12. Qd2 {[%clk 0:02:29.6]} 12... a6
{[%clk 0:02:54.3]} 13. Bb2 {[%clk 0:02:15.3]} 13... Be7 {[%clk 0:02:44]} 14. Be2
{[%clk 0:02:11.8]} 14... g6 {[%clk 0:02:39.3]} 15. O-O {[%clk 0:02:09.7]} 15...
b5 {[%clk 0:02:31.8]} 16. g3 {[%clk 0:01:49.5]} 16... Qb6 {[%clk 0:02:30.4]} 17.
Rfd1 {[%clk 0:01:45.1]} 17... O-O {[%clk 0:02:28.1]} 18. Kg2 {[%clk 0:01:42]}
18... Kg7 {[%clk 0:02:28.8]} 19. h3 {[%clk 0:01:41.7]} 19... Rh8 {[%clk
0:02:29.7]} 20. Rab1 {[%clk 0:01:01.6]} 20... Qb7 {[%clk 0:02:03]} 21. Na2
{[%clk 0:00:46.5]} 21... Na7 {[%clk 0:02:02.9]} 22. Nc1 {[%clk 0:00:46.2]} 22...
Nc8 {[%clk 0:02:03.7]} 23. Nb3 {[%clk 0:00:47.1]} 23... Nb6 {[%clk 0:02:04.6]}
24. Nc5 {[%clk 0:00:44.2]} 24... Qc8 {[%clk 0:01:58.7]} 25. Bc1 {[%clk
0:00:38.5]} 25... Bc6 {[%clk 0:01:55.5]} 26. Rh1 {[%clk 0:00:29.9]} 26... Nc4
{[%clk 0:01:55.9]} 27. Qc3 {[%clk 0:00:29.4]} 27... a5 {[%clk 0:01:38.3]} 28. g4
{[%clk 0:00:29.6]} 28... hxg4 {[%clk 0:01:36.7]} 29. hxg4 {[%clk 0:00:30]} 29...
Rxh1 {[%clk 0:01:34.7]} 30. Kxh1 {[%clk 0:00:20.4]} 30... Ng3+ {[%clk
0:01:15.1]} 0-1

[Event "*** Titled Tuesday Blitz"]
[Site "Chess.com"]
[Date "2019.07.02"]
[Round "9"]
[White "XiaoKangZhong"]
[Black "Samantha_Ross"]
[Result "1-0"]
[WhiteElo "2255"]
[BlackElo "2030"]
[TimeControl "180+2"]
[EndTime "15:00:19 PDT"]
[Termination "XiaoKangZhong won by resignation"]

1. e4 {[%clk 0:03:01.9]} 1... c5 {[%clk 0:03:01.1]} 2. Nf3 {[%clk 0:03:01.4]}
2... d6 {[%clk 0:03:02.6]} 3. Bb5+ {[%clk 0:03:01.3]} 3... Bd7 {[%clk
0:03:03.5]} 4. Bxd7+ {[%clk 0:03:01.2]} 4... Qxd7 {[%clk 0:03:05.4]} 5. O-O
{[%clk 0:03:02.5]} 5... Nc6 {[%clk 0:03:05.1]} 6. c3 {[%clk 0:03:00.8]} 6... Nf6
{[%clk 0:03:06.1]} 7. Qe2 {[%clk 0:03:01.7]} 7... g6 {[%clk 0:03:05.9]} 8. d4
{[%clk 0:03:02.4]} 8... cxd4 {[%clk 0:03:06.9]} 9. cxd4 {[%clk 0:03:04.3]} 9...
Bg7 {[%clk 0:03:07.8]} 10. Nc3 {[%clk 0:03:04.2]} 10... O-O {[%clk 0:03:08.5]}
11. Rd1 {[%clk 0:03:04.5]} 11... Rfd8 {[%clk 0:02:49.2]} 12. h3 {[%clk
0:03:03.3]} 12... Rac8 {[%clk 0:02:47]} 13. Bg5 {[%clk 0:03:01.6]} 13... Qc7
{[%clk 0:02:25.3]} 14. e5 {[%clk 0:02:55.5]} 14... dxe5 {[%clk 0:02:24]} 15.
dxe5 {[%clk 0:02:57.4]} 15... Ne8 {[%clk 0:01:58.5]} 16. Nd5 {[%clk 0:02:53.2]}
16... Qa5 {[%clk 0:01:58.8]} 17. Nxe7+ {[%clk 0:02:36.5]} 17... Nxe7 {[%clk
0:01:57.8]} 18. Bxe7 {[%clk 0:02:37.8]} 18... Rxd1+ {[%clk 0:01:55.6]} 19. Rxd1
{[%clk 0:02:39.3]} 19... Qxa2 {[%clk 0:01:55.7]} 20. Qb5 {[%clk 0:02:36.6]}
20... b6 {[%clk 0:01:48.6]} 21. Nd4 {[%clk 0:02:18.6]} 21... Qc4 {[%clk
0:01:44.8]} 22. Qxc4 {[%clk 0:02:12.1]} 22... Rxc4 {[%clk 0:01:46.7]} 23. Nb5
{[%clk 0:02:13.5]} 23... Bxe5 {[%clk 0:01:37.3]} 24. f4 {[%clk 0:02:03.6]} 24...
Bc7 {[%clk 0:00:26.5]} 25. Re1 {[%clk 0:01:13.8]} 25... f5 {[%clk 0:00:18.9]}
26. Bd8 {[%clk 0:01:12.2]} 26... Kf7 {[%clk 0:00:16.2]} 27. Bxc7 {[%clk
0:00:50.7]} 27... Nxc7 {[%clk 0:00:15.9]} 28. Nd6+ {[%clk 0:00:50.7]} 28... Kf6
{[%clk 0:00:13.2]} 29. Nxc4 {[%clk 0:00:52.6]} 29... Nd5 {[%clk 0:00:14.9]} 30.
g3 {[%clk 0:00:52.9]} 30... b5 {[%clk 0:00:16.2]} 31. Ne3 {[%clk 0:00:52.8]}
31... a5 {[%clk 0:00:17.8]} 32. Nxd5+ {[%clk 0:00:53.8]} 1-0

[Event "*** Titled Tuesday Blitz"]
[Site "Chess.com"]
[Date "2019.07.02"]
[Round "9"]
[White "chesstatour"]
[Black "checkmatequen"]
[Result "1-0"]
[WhiteElo "2037"]
[BlackElo "2214"]
[TimeControl "180+2"]
[EndTime "15:00:20 PDT"]
[Termination "chesstatour won by resignation"]

1. d4 {[%clk 0:03:01.9]} 1... Nf6 {[%clk 0:02:57.4]} 2. c4 {[%clk 0:03:00.4]}
2... e6 {[%clk 0:02:56.5]} 3. g3 {[%clk 0:02:59]} 3... c5 {[%clk 0:02:57.5]} 4.
Nf3 {[%clk 0:02:58.4]} 4... cxd4 {[%clk 0:02:57.8]} 5. Nxd4 {[%clk 0:02:58.8]}
5... a6 {[%clk 0:02:59.7]} 6. Bg2 {[%clk 0:02:59.5]} 6... Qc7 {[%clk 0:03:01.1]}
7. Nc3 {[%clk 0:02:47.8]} 7... Qxc4 {[%clk 0:03:00.6]} 8. Bg5 {[%clk 0:02:23.1]}
8... Be7 {[%clk 0:02:55.6]} 9. Rc1 {[%clk 0:02:15.4]} 9... Qc7 {[%clk
0:02:56.5]} 10. Ncb5 {[%clk 0:01:18.5]} 10... Qa5+ {[%clk 0:02:56.2]} 11. Bd2
{[%clk 0:01:17.9]} 11... Bb4 {[%clk 0:02:51.2]} 12. Nc7+ {[%clk 0:00:33.8]}
12... Kf8 {[%clk 0:02:47.9]} 13. Nxa8 {[%clk 0:00:33.9]} 13... Nc6 {[%clk
0:02:47.2]} 14. Nxc6 {[%clk 0:00:27.1]} 14... bxc6 {[%clk 0:02:49.1]} 15. a3
{[%clk 0:00:18.9]} 15... Bxd2+ {[%clk 0:02:44.5]} 16. Qxd2 {[%clk 0:00:20.8]}
16... Qb5 {[%clk 0:02:36.6]} 17. Qd6+ {[%clk 0:00:19.4]} 17... Kg8 {[%clk
0:02:33.7]} 18. O-O {[%clk 0:00:18.6]} 18... Qb7 {[%clk 0:02:31.9]} 19. Qc7
{[%clk 0:00:15.5]} 19... Qxc7 {[%clk 0:02:30.3]} 20. Nxc7 {[%clk 0:00:15.5]}
20... Kf8 {[%clk 0:02:32.2]} 21. Rfd1 {[%clk 0:00:09.6]} 21... Ke7 {[%clk
0:02:33.1]} 22. Na8 {[%clk 0:00:11.2]} 22... d5 {[%clk 0:02:30.2]} 23. Nb6
{[%clk 0:00:11.9]} 23... Bb7 {[%clk 0:02:30.9]} 24. Na4 {[%clk 0:00:13]} 24...
Kd6 {[%clk 0:02:31.1]} 25. b4 {[%clk 0:00:13.7]} 25... Nd7 {[%clk 0:02:31.2]}
26. Nc5 {[%clk 0:00:13.9]} 26... Nxc5 {[%clk 0:02:31.9]} 27. bxc5+ {[%clk
0:00:13.4]} 27... Kd7 {[%clk 0:02:32.3]} 28. Rb1 {[%clk 0:00:14.5]} 28... Kc7
{[%clk 0:02:31.8]} 29. Rb6 {[%clk 0:00:15.1]} 29... e5 {[%clk 0:02:28.9]} 30.
Rdb1 {[%clk 0:00:15.4]} 30... Bc8 {[%clk 0:02:30.2]} 31. Rb8 {[%clk 0:00:13.9]}
31... Rd8 {[%clk 0:02:31.2]} 32. Ra8 {[%clk 0:00:11.6]} 32... Rd7 {[%clk
0:02:28]} 33. Bh3 {[%clk 0:00:10.9]} 33... Bb7 {[%clk 0:02:22.9]} 34. Ra7 {[%clk
0:00:09.3]} 34... Kb8 {[%clk 0:02:22.6]} 35. Bxd7 {[%clk 0:00:06.8]} 35... Kxa7
{[%clk 0:02:22]} 36. Rb6 {[%clk 0:00:06.1]} 36... d4 {[%clk 0:02:20.5]} 37. Bxc6
{[%clk 0:00:06.4]} 37... Bxc6 {[%clk 0:02:21.2]} 38. Rxc6 {[%clk 0:00:08.3]}
38... Kb7 {[%clk 0:02:20.3]} 39. Rd6 {[%clk 0:00:08.3]} 39... Kc7 {[%clk
0:02:20.8]} 40. Kf1 {[%clk 0:00:06.3]} 40... f5 {[%clk 0:02:21.4]} 41. Ke1
{[%clk 0:00:07.4]} 41... g6 {[%clk 0:02:21.3]} 42. Kd2 {[%clk 0:00:08.7]} 42...
e4 {[%clk 0:02:21.4]} 43. Rxd4 {[%clk 0:00:07.6]} 43... Kc6 {[%clk 0:02:22.3]}
44. Rd6+ {[%clk 0:00:08.9]} 44... Kxc5 {[%clk 0:02:23.1]} 45. Rxa6 {[%clk
0:00:09.9]} 45... Kb5 {[%clk 0:02:24.1]} 46. Ra7 {[%clk 0:00:10.6]} 46... g5
{[%clk 0:02:24.2]} 47. Rxh7 {[%clk 0:00:10.5]} 47... f4 {[%clk 0:02:24.8]} 48.
gxf4 {[%clk 0:00:10.9]} 48... gxf4 {[%clk 0:02:25.4]} 49. h4 {[%clk 0:00:12.3]}
49... f3 {[%clk 0:02:25.6]} 50. exf3 {[%clk 0:00:12.8]} 50... exf3 {[%clk
0:02:25.8]} 51. Re7 {[%clk 0:00:13.7]} 1-0

[Event "*** Titled Tuesday Blitz"]
[Site "Chess.com"]
[Date "2019.07.02"]
[Round "9"]
[White "Th3ChessViking"]
[Black "DryCounty"]
[Result "0-1"]
[WhiteElo "2471"]
[BlackElo "2696"]
[TimeControl "180+2"]
[EndTime "15:00:21 PDT"]
[Termination "DryCounty won by resignation"]

1. c4 {[%clk 0:03:01.9]} 1... e6 {[%clk 0:02:58.9]} 2. Nf3 {[%clk 0:03:00.9]}
2... Nf6 {[%clk 0:02:59.5]} 3. g3 {[%clk 0:03:02.1]} 3... d5 {[%clk 0:02:59.7]}
4. Bg2 {[%clk 0:03:03.4]} 4... dxc4 {[%clk 0:03:00.6]} 5. O-O {[%clk 0:03:01.2]}
5... Nbd7 {[%clk 0:02:53.9]} 6. Na3 {[%clk 0:03:01.6]} 6... Bxa3 {[%clk
0:02:52.7]} 7. bxa3 {[%clk 0:03:03]} 7... O-O {[%clk 0:02:54.3]} 8. Bb2 {[%clk
0:03:04.2]} 8... c5 {[%clk 0:02:49.6]} 9. Qc2 {[%clk 0:03:05]} 9... b5 {[%clk
0:02:30.1]} 10. Ne5 {[%clk 0:02:40.5]} 10... Nd5 {[%clk 0:02:22]} 11. Nc6 {[%clk
0:02:31.6]} 11... Qb6 {[%clk 0:02:16.8]} 12. Ne7+ {[%clk 0:02:22.5]} 12... Nxe7
{[%clk 0:02:09.2]} 13. Bxa8 {[%clk 0:02:24.4]} 13... Nd5 {[%clk 0:01:53.6]} 14.
d3 {[%clk 0:02:12.2]} 14... cxd3 {[%clk 0:01:49]} 15. Qxd3 {[%clk 0:02:14.1]}
15... c4 {[%clk 0:01:08.2]} 16. Qd4 {[%clk 0:02:08.5]} 16... Qxd4 {[%clk
0:01:08.9]} 17. Bxd4 {[%clk 0:02:10.4]} 17... a6 {[%clk 0:01:06.6]} 18. a4
{[%clk 0:01:58.6]} 18... N7b6 {[%clk 0:00:57.8]} 19. Bc6 {[%clk 0:01:51.5]}
19... Nxa4 {[%clk 0:00:55.6]} 20. Bxd5 {[%clk 0:01:37.3]} 20... exd5 {[%clk
0:00:55.8]} 21. a3 {[%clk 0:01:34.1]} 21... Re8 {[%clk 0:00:54.5]} 22. Ra2
{[%clk 0:01:34.3]} 22... Bd7 {[%clk 0:00:48]} 23. f3 {[%clk 0:01:32.7]} 23... f6
{[%clk 0:00:45.6]} 24. Kf2 {[%clk 0:01:33.2]} 24... Kf7 {[%clk 0:00:47.2]} 25.
Rb1 {[%clk 0:01:32.5]} 25... a5 {[%clk 0:00:46.6]} 26. Rd2 {[%clk 0:01:28.2]}
26... Rb8 {[%clk 0:00:44.7]} 27. Ba7 {[%clk 0:01:24.5]} 27... Rb7 {[%clk
0:00:44.7]} 28. Be3 {[%clk 0:01:25.9]} 28... b4 {[%clk 0:00:42.8]} 29. Rxd5
{[%clk 0:01:23.4]} 29... Nc3 {[%clk 0:00:39.6]} 30. axb4 {[%clk 0:00:33.9]}
30... Nxd5 {[%clk 0:00:38.3]} 0-1